fUST/lending_fUST_20250426
["ID","MTS","AMOUNT","RATE_DAILY","PERIOD"]
[359016309,1745646634495,-500.0,0.00016438,2]
[359016310,1745646634507,-500.0,0.00016438,2]
[359016311,1745646634517,-500.0,0.00016438,2]
[359016312,1745646634527,-500.0,0.00016438,2]
[359016313,1745646634538,-500.0,0.00016438,2]
[359016314,1745646634547,-500.0,0.00016438,2]
[359016315,1745646634557,-500.0,0.00016438,2]
[359016316,1745646634567,-179.92411,0.00016438,2]
[359016317,1745646634578,-526.45327361,0.00016438,2]
[359016318,1745646634587,-179.92411,0.00016438,2]
[359016319,1745646634597,-179.92411,0.00016438,2]
[359016320,1745646634607,-179.92411,0.00016438,2]
[359016321,1745646634617,-179.92411,0.00016438,2]
[359016322,1745646634627,-234.89880562,0.00016438,2]
[359016323,1745646634636,-502.77090952,0.00016438,2]
[359016324,1745646634646,-179.92411,0.00016438,2]
[359016325,1745646634656,-179.92411,0.00016438,2]
[359016326,1745646634666,-179.92411,0.00016438,2]
[359016327,1745646634675,-179.92411,0.00016438,2]
[359016328,1745646634685,-179.92411,0.00016438,2]
[359016329,1745646634700,-179.92411,0.00016438,2]
[359016330,1745646634709,-179.92411,0.00016438,2]
[359016331,1745646634720,-179.92411,0.00016438,2]
[359016332,1745646634730,-179.92411,0.00016438,2]
[359016333,1745646634740,-179.92411,0.00016438,2]
[359016334,1745646634751,-500.0,0.00016438,2]
[359016335,1745646634761,-179.92411,0.00016438,2]
[359016336,1745646634771,-507.21133068,0.00016438,2]
[359016337,1745646634783,-179.92411,0.00016438,2]
[359016338,1745646634793,-179.92411,0.00016438,2]
[359016339,1745646634803,-179.92411,0.00016438,2]
[359016340,1745646634813,-179.92412,0.00016438,2]
[359016341,1745646634823,-500.0,0.00016438,2]
[359016342,1745646634833,-500.0,0.00016438,2]
[359016343,1745646634843,-500.0,0.00016438,2]
[359016344,1745646635027,-500.0,0.00016438,2]
[359016345,1745646635037,-500.0,0.00016438,2]
[359016346,1745646635047,-504.99722232,0.00016438,2]
[359016347,1745646635059,-500.0,0.00016438,2]
[359016348,1745646635069,-501.77825519,0.00016438,2]
[359016349,1745646635079,-500.0,0.00016438,2]
[359016350,1745646635090,-373.82662822,0.00016438,2]
[359016351,1745646635100,-504.27459353,0.00016438,2]
[359016352,1745646635110,-500.0,0.00016438,2]
[359016353,1745646635119,-500.87014603,0.00016438,2]
[359016354,1745646635129,-300.0,0.00016438,2]
[359016355,1745646635139,-500.0,0.00016438,2]
[359016356,1745646635149,-608.91163562,0.00016438,2]
[359016357,1745646635159,-500.0,0.00016438,2]
[359016358,1745646635168,-500.0,0.00016438,2]
[359016359,1745646635178,-500.0,0.00016438,2]
[359016360,1745646635187,-500.0,0.00016438,2]
[359016361,1745646635197,-500.0,0.00016438,2]
[359016362,1745646635206,-500.0,0.00016438,2]
[359016363,1745646635216,-500.0,0.00016438,2]
[359016364,1745646635226,-500.0,0.00016438,2]
[359016365,1745646635236,-500.0,0.00016438,2]
[359016366,1745646635248,-500.0,0.00016438,2]
[359016367,1745646635258,-500.0,0.00016438,2]
[359016368,1745646635267,-500.0,0.00016438,2]
[359016369,1745646635277,-5705.29,0.00016438,2]
[359016370,1745646635286,-5705.29,0.00016438,2]
[359016371,1745646635295,-5705.29,0.00016438,2]
[359016372,1745646635306,-5705.29,0.00016438,2]
[359016373,1745646635315,-5705.29,0.00016438,2]
[359016374,1745646635324,-5705.29,0.00016438,2]
[359016375,1745646635334,-500.0,0.00016438,2]
[359016376,1745646635344,-5705.29,0.00016438,2]
[359016377,1745646635353,-5705.29,0.00016438,2]
[359016378,1745646635363,-5705.29,0.00016438,2]
[359016379,1745646635372,-5705.29,0.00016438,2]
[359016380,1745646635381,-4605.78093415,0.00016438,2]
[359016393,1745646637940,-6235.06525838,0.00016152,2]
[359016513,1745647018672,1000.0,0.00025,30]
[359016539,1745647530580,1531.41118119,0.00025,30]
[359016540,1745647636107,-150.54893352,0.00015107,2]
[359016557,1745647832146,-84.87014018,0.00015107,2]
[359016558,1745647832158,-152.68707532,0.00015843,2]
[359016560,1745647832168,-229.54208449,0.00015872,2]
[359016562,1745647832198,-875.01979519,0.00015872,2]
[359016563,1745647832208,-1240.97,0.0001597,2]
[359016564,1745647832218,-1200.0,0.0001597,2]
[359016565,1745647832228,-500.0,0.00015971,2]
[359016566,1745647832240,-500.0,0.00015971,2]
[359016567,1745647832251,-292.01597856,0.00015971,2]
[359016568,1745647832261,-300.0,0.00015971,2]
[359016569,1745647832271,-300.0,0.00015971,2]
[359016570,1745647832282,-49599.4149041,0.00015972,2]
[359016575,1745647838234,-285.67045747,0.00015971,2]
[359016576,1745647838244,-338.36986265,0.00015971,2]
[359016577,1745647838257,-186.86492561,0.00015971,2]
[359016578,1745647838267,-126.987096,0.00015971,2]
[359016590,1745647844234,-751.18808791,0.00015,2]
[359016596,1745647846270,-39417.01361331,0.00015,2]
[359016597,1745647846283,-23521.63068762,0.00015,2]
[359016598,1745647846329,-2838.70494261,0.00015,2]
[359016599,1745647870245,150.0,0.00025,30]
[359016623,1745648338351,438.55304848,0.00013983,2]
[359016624,1745648338380,2558.88388462,0.00013983,2]
[359016629,1745648498271,294.043627,0.00013976,2]
[359016642,1745648840130,-203.65553772,0.000149,2]
[359016643,1745648840159,-276.81906257,0.000149,2]
[359016644,1745648840186,-109.38221075,0.00014966,2]
[359016645,1745648846088,-190.61778925,0.00014966,2]
[359016646,1745648846111,-758.71207341,0.00014967,2]
[359016647,1745648846138,-500.0,0.00014967,2]
[359016648,1745648846161,-313.95697712,0.00014967,2]
[359016649,1745648846193,-500.0,0.00014967,2]
[359016650,1745648846218,-500.0,0.00014967,2]
[359016651,1745648846249,-138.01071828,0.00014967,2]
[359016654,1745648908952,1377.0911513,0.00013988,2]
[359016664,1745649032316,-300.0,0.00014966,2]
[359016665,1745649032327,-300.0,0.00014966,2]
[359016666,1745649032336,-1200.0,0.00014966,2]
[359016668,1745649032346,-361.98928172,0.00014967,2]
[359016670,1745649032357,-418.11271304,0.00014967,2]
[359016671,1745649032366,-80.27039887,0.00014967,2]
[359016673,1745649032378,-359.3437208,0.00014967,2]
[359016674,1745649032389,-60.38588033,0.00014967,2]
[359016675,1745649032400,-406.15078189,0.00014967,2]
[359016676,1745649032412,-93.84921811,0.00014967,2]
[359016677,1745649032424,-500.0,0.00014967,2]
[359016678,1745649032434,-500.0,0.00014967,2]
[359016679,1745649032444,-500.0,0.00014967,2]
[359016680,1745649032454,-500.0,0.00014967,2]
[359016681,1745649032464,-500.0,0.00014967,2]
[359016682,1745649032473,-500.0,0.00014967,2]
[359016685,1745649032484,-500.0,0.00014967,2]
[359016687,1745649032494,-500.0,0.00014967,2]
[359016689,1745649032503,-500.0,0.00014967,2]
[359016691,1745649032513,-500.0,0.00014967,2]
[359016693,1745649032522,-500.0,0.00014967,2]
[359016695,1745649032531,-500.0,0.00014967,2]
[359016696,1745649032542,-500.0,0.00014967,2]
[359016697,1745649032551,-500.0,0.00014967,2]
[359016698,1745649032562,-500.0,0.00014967,2]
[359016700,1745649032573,-500.0,0.00014967,2]
[359016702,1745649032582,-500.0,0.00014967,2]
[359016704,1745649032591,-500.0,0.00014967,2]
[359016706,1745649032601,-189.98572578,0.00014967,2]
[359016708,1745649032611,-500.0,0.00014967,2]
[359016710,1745649032621,-500.0,0.00014967,2]
[359016712,1745649032630,-500.0,0.00014967,2]
[359016714,1745649032639,-500.0,0.00014967,2]
[359016716,1745649032649,-500.0,0.00014967,2]
[359016718,1745649032658,-500.0,0.00014967,2]
[359016720,1745649032668,-500.0,0.00014967,2]
[359016722,1745649032678,-500.0,0.00014967,2]
[359016724,1745649032687,-500.0,0.00014967,2]
[359016726,1745649032697,-500.0,0.00014967,2]
[359016728,1745649032707,-500.0,0.00014967,2]
[359016730,1745649032717,-327.93608748,0.00014967,2]
[359016731,1745649032726,-500.0,0.00014967,2]
[359016732,1745649032737,-500.0,0.00014967,2]
[359016733,1745649032747,-500.0,0.00014967,2]
[359016734,1745649032757,-504.24103608,0.00014973,2]
[359016735,1745649032766,-500.74360445,0.00014973,2]
[359016736,1745649032776,-501.19226922,0.00014973,2]
[359016737,1745649032785,-500.0,0.00014973,2]
[359016738,1745649032794,-500.0,0.00014973,2]
[359016739,1745649032804,-500.0,0.00014973,2]
[359016740,1745649032813,-500.0,0.00014973,2]
[359016741,1745649032823,-435.55804696,0.00014973,2]
[359016742,1745649032833,-500.0,0.00014973,2]
[359016743,1745649032842,-500.0,0.00014973,2]
[359016744,1745649032851,-501.13528932,0.00014973,2]
[359016745,1745649032861,-500.0,0.00014973,2]
[359016746,1745649032871,-500.0,0.00014973,2]
[359016747,1745649032880,-501.17259154,0.00014973,2]
[359016748,1745649032890,-500.0,0.00014973,2]
[359016749,1745649032899,-500.0,0.00014973,2]
[359016750,1745649032909,-163.09334721,0.00014973,2]
[359016751,1745649032921,-336.90665279,0.00014973,2]
[359016752,1745649032931,-475.94334721,0.00014973,2]
[359016753,1745649032968,-24.05665279,0.00014973,2]
[359016754,1745649032977,-500.0,0.00014973,2]
[359016755,1745649032987,-155.20851505,0.00014973,2]
[359016756,1745649032997,-500.0,0.00014973,2]
[359016757,1745649033007,-269.41928412,0.00014973,2]
[359016758,1745649033017,-500.0,0.00014973,2]
[359016759,1745649033030,-500.76635225,0.00014973,2]
[359016760,1745649033039,-500.0,0.00014973,2]
[359016761,1745649033049,-543.231754,0.00014973,2]
[359016762,1745649033059,-500.0,0.00014973,2]
[359016763,1745649033069,-500.0,0.00014973,2]
[359016764,1745649033078,-500.0,0.00014973,2]
[359016765,1745649033088,-500.0,0.00014973,2]
[359016766,1745649033098,-500.0,0.00014973,2]
[359016767,1745649033107,-500.0,0.00014973,2]
[359016768,1745649033117,-500.0,0.00014973,2]
[359016769,1745649033128,-500.0,0.00014973,2]
[359016770,1745649033138,-500.0,0.00014973,2]
[359016771,1745649033148,-505.06405119,0.00014973,2]
[359016772,1745649033158,-500.0,0.00014973,2]
[359016773,1745649033169,-151.0,0.00014991,2]
[359016774,1745649033179,-930.6147925,0.00014998,2]
[359016775,1745649033188,-236.85890386,0.00014999,2]
[359016776,1745649033198,-500.0,0.00014999,2]
[359016777,1745649033208,-199.96932023,0.00014999,2]
[359016778,1745649033218,-379.01616395,0.00014999,2]
[359016779,1745649033228,-551.03771587,0.00014999,2]
[359016780,1745649033238,-82.86165789,0.00015,2]
[359016781,1745649033251,-16539.80513936,0.00015,2]
[359016806,1745649038379,-358.12697751,0.00015,2]
[359016808,1745649038391,-264554.95512244,0.00015,2]
[359016810,1745649038400,-280.14039261,0.00015,2]
[359016812,1745649038409,-251.9,0.00015,2]
[359016814,1745649038418,-269.97603828,0.00015007,2]
[359016816,1745649038428,-152.0,0.00015039,2]
[359016818,1745649038437,-151.0,0.0001561,2]
[359016820,1745649038446,-318.0053915,0.00015679,2]
[359016822,1745649038455,-349.6676322,0.000158,2]
[359016824,1745649038465,-353.7254255,0.000158,2]
[359016826,1745649038475,-566.8670154,0.000158,2]
[359016828,1745649038484,-153.0,0.000158,2]
[359016830,1745649038494,-153.0,0.000158,2]
[359016832,1745649038503,-153.0,0.000159,2]
[359016834,1745649038512,-3044.14553332,0.000159,2]
[359016836,1745649038522,-160.0,0.00015933,2]
[359016838,1745649038531,-160.0,0.00015933,2]
[359016840,1745649038540,-421.06755229,0.00015989,2]
[359016842,1745649038550,-160.0,0.00015989,2]
[359016844,1745649038559,-840.35238838,0.00015989,2]
[359016846,1745649038568,-160.0,0.00015989,2]
[359016848,1745649038578,-160.0,0.00015989,2]
[359016850,1745649038588,-313.17372804,0.00015989,2]
[359016852,1745649038597,-4475.94730304,0.00015989,2]
[359016854,1745649038607,-566.8670154,0.00016,2]
[359016856,1745649038616,-160.0,0.00016104,2]
[359016858,1745649038626,-500.0,0.00016164,2]
[359016860,1745649038635,-223.10948209,0.00016164,2]
[359016862,1745649038645,-522.91052313,0.00016164,2]
[359016864,1745649038654,-492.9843846,0.00016273,2]
[359016866,1745649038664,-151.0,0.000163,2]
[359016868,1745649038674,-500.0,0.00016329,2]
[359016870,1745649038683,-151.0,0.0001636,2]
[359016872,1745649038694,-554.241,0.00016372,2]
[359016875,1745649038703,-706.0,0.00016372,2]
[359016876,1745649038713,-404.769,0.00016372,2]
[359016878,1745649038723,-545.0,0.00016372,2]
[359016880,1745649038732,-420.0,0.0001638,2]
[359016882,1745649038741,-186.71389602,0.00016428,2]
[359016884,1745649038751,-184.77944,0.00016438,2]
[359016887,1745649038760,-184.77944,0.00016438,2]
[359016889,1745649038769,-184.77944,0.00016438,2]
[359016891,1745649038779,-184.77944,0.00016438,2]
[359016893,1745649038788,-184.77944,0.00016438,2]
[359016895,1745649038797,-184.77944,0.00016438,2]
[359016897,1745649038806,-184.77944,0.00016438,2]
[359016899,1745649038816,-184.77944,0.00016438,2]
[359016900,1745649038825,-184.77944,0.00016438,2]
[359016903,1745649038835,-184.77944,0.00016438,2]
[359016905,1745649038845,-184.77944,0.00016438,2]
[359016907,1745649038856,-184.77944,0.00016438,2]
[359016908,1745649038865,-184.77944,0.00016438,2]
[359016910,1745649038875,-184.77944,0.00016438,2]
[359016913,1745649038884,-184.77944,0.00016438,2]
[359016915,1745649038894,-184.77944,0.00016438,2]
[359016917,1745649038904,-184.77944,0.00016438,2]
[359016919,1745649038914,-184.77944,0.00016438,2]
[359016921,1745649038923,-184.77944,0.00016438,2]
[359016923,1745649038932,-184.77943,0.00016438,2]
[359016925,1745649038942,-151.0,0.00016438,2]
[359016927,1745649038951,-500.0,0.00016438,2]
[359016929,1745649038961,-1013.91718933,0.00016438,2]
[359016931,1745649038971,-500.0,0.00016438,2]
[359016933,1745649038981,-500.0,0.00016438,2]
[359016935,1745649038990,-500.0,0.00016438,2]
[359016937,1745649039000,-500.0,0.00016438,2]
[359016939,1745649039009,-500.0,0.00016438,2]
[359016941,1745649039020,-500.0,0.00016438,2]
[359016943,1745649039031,-500.0,0.00016438,2]
[359016945,1745649039041,-500.0,0.00016438,2]
[359016947,1745649039050,-502.52085639,0.00016438,2]
[359016949,1745649039060,-500.0,0.00016438,2]
[359016951,1745649039070,-500.0,0.00016438,2]
[359016953,1745649039079,-500.0,0.00016438,2]
[359016955,1745649039089,-500.0,0.00016438,2]
[359016957,1745649039098,-500.0,0.00016438,2]
[359016959,1745649039107,-500.0,0.00016438,2]
[359016961,1745649039117,-500.0,0.00016438,2]
[359016963,1745649039127,-500.0,0.00016438,2]
[359016965,1745649039136,-274.57529676,0.00016438,2]
[359016967,1745649039146,-500.0,0.00016438,2]
[359016969,1745649039155,-500.0,0.00016438,2]
[359016971,1745649039164,-500.0,0.00016438,2]
[359016973,1745649039174,-500.0,0.00016438,2]
[359016975,1745649039183,-500.0,0.00016438,2]
[359016977,1745649039193,-500.0,0.00016438,2]
[359016979,1745649039203,-500.0,0.00016438,2]
[359016981,1745649039212,-500.0,0.00016438,2]
[359016983,1745649039222,-500.0,0.00016438,2]
[359016985,1745649039232,-500.0,0.00016438,2]
[359016987,1745649039242,-500.0,0.00016438,2]
[359016989,1745649039251,-500.0,0.00016438,2]
[359016991,1745649039261,-500.0,0.00016438,2]
[359016993,1745649039271,-500.0,0.00016438,2]
[359016995,1745649039281,-500.0,0.00016438,2]
[359016998,1745649039290,-500.0,0.00016438,2]
[359017000,1745649039300,-500.0,0.00016438,2]
[359017002,1745649039310,-500.0,0.00016438,2]
[359017004,1745649039320,-500.0,0.00016438,2]
[359017006,1745649039330,-505.334177,0.00016438,2]
[359017008,1745649039339,-500.0,0.00016438,2]
[359017010,1745649039349,-500.0,0.00016438,2]
[359017012,1745649039358,-500.0,0.00016438,2]
[359017014,1745649039367,-500.0,0.00016438,2]
[359017016,1745649039376,-500.0,0.00016438,2]
[359017018,1745649039386,-500.0,0.00016438,2]
[359017020,1745649039395,-163.95590042,0.00016438,2]
[359017022,1745649039405,-500.0,0.00016438,2]
[359017024,1745649039415,-501.47067732,0.00016438,2]
[359017026,1745649039424,-500.0,0.00016438,2]
[359017028,1745649039434,-500.0,0.00016438,2]
[359017030,1745649039443,-500.0,0.00016438,2]
[359017032,1745649039453,-500.0,0.00016438,2]
[359017034,1745649039462,-500.0,0.00016438,2]
[359017036,1745649039473,-501.03284925,0.00016438,2]
[359017038,1745649039483,-500.0,0.00016438,2]
[359017040,1745649039492,-500.0,0.00016438,2]
[359017042,1745649039502,-500.0,0.00016438,2]
[359017044,1745649039512,-502.66781262,0.00016438,2]
[359017046,1745649039521,-515.9334085,0.00016438,2]
[359017047,1745649039532,-500.0,0.00016438,2]
[359017049,1745649039541,-502.07261763,0.00016438,2]
[359017050,1745649039551,-500.0,0.00016438,2]
[359017051,1745649039561,-500.0,0.00016438,2]
[359017052,1745649039570,-213.37504583,0.00016438,2]
[359017053,1745649039580,-500.0,0.00016438,2]
[359017054,1745649039590,-500.0,0.00016438,2]
[359017056,1745649039600,-508.22127204,0.00016438,2]
[359017057,1745649039609,-500.0,0.00016438,2]
[359017058,1745649039618,-500.0,0.00016438,2]
[359017059,1745649039628,-500.0,0.00016438,2]
[359017060,1745649039638,-509.81224453,0.00016438,2]
[359017061,1745649039648,-500.0,0.00016438,2]
[359017062,1745649039657,-310.96742007,0.00016438,2]
[359017063,1745649039667,-500.0,0.00016438,2]
[359017064,1745649039677,-500.0,0.00016438,2]
[359017065,1745649039686,-504.32896835,0.00016438,2]
[359017066,1745649039695,-501.32758973,0.00016438,2]
[359017067,1745649039705,-500.0,0.00016438,2]
[359017068,1745649039715,-500.0,0.00016438,2]
[359017069,1745649039725,-500.0,0.00016438,2]
[359017070,1745649039735,-502.85254159,0.00016438,2]
[359017071,1745649039744,-500.0,0.00016438,2]
[359017072,1745649039755,-506.70967208,0.00016438,2]
[359017073,1745649039765,-502.76956577,0.00016438,2]
[359017074,1745649039775,-501.38796313,0.00016438,2]
[359017075,1745649039785,-500.0,0.00016438,2]
[359017076,1745649039794,-1027.16456211,0.00016438,2]
[359017077,1745649039805,-500.0,0.00016438,2]
[359017078,1745649039816,-500.0,0.00016438,2]
[359017079,1745649039827,-500.0,0.00016438,2]
[359017080,1745649039837,-500.0,0.00016438,2]
[359017081,1745649039847,-500.0,0.00016438,2]
[359017082,1745649039856,-500.0,0.00016438,2]
[359017083,1745649039866,-500.0,0.00016438,2]
[359017084,1745649039876,-367.38402108,0.00016438,2]
[359017085,1745649039887,-500.0,0.00016438,2]
[359017086,1745649039897,-387.06824117,0.00016438,2]
[359017087,1745649039907,-500.0,0.00016438,2]
[359017088,1745649039917,-500.0,0.00016438,2]
[359017089,1745649039927,-511.58140897,0.00016438,2]
[359017090,1745649039937,-539.00698818,0.00016438,2]
[359017091,1745649039948,-502.39669716,0.00016438,2]
[359017092,1745649039957,-508.87060565,0.00016438,2]
[359017093,1745649039967,-500.0,0.00016438,2]
[359017094,1745649039977,-500.0,0.00016438,2]
[359017095,1745649039987,-500.97927642,0.00016438,2]
[359017096,1745649039998,-500.0,0.00016438,2]
[359017097,1745649040007,-500.0,0.00016438,2]
[359017098,1745649040018,-500.0,0.00016438,2]
[359017099,1745649040031,-500.0,0.00016438,2]
[359017100,1745649040042,-500.0,0.00016438,2]
[359017101,1745649040052,-500.0,0.00016438,2]
[359017102,1745649040062,-500.0,0.00016438,2]
[359017103,1745649040073,-500.0,0.00016438,2]
[359017104,1745649040083,-500.0,0.00016438,2]
[359017106,1745649040093,-500.0,0.00016438,2]
[359017107,1745649040104,-505.69914611,0.00016438,2]
[359017108,1745649040113,-500.0,0.00016438,2]
[359017109,1745649040123,-505.33675508,0.00016438,2]
[359017110,1745649040133,-500.0,0.00016438,2]
[359017111,1745649040143,-526.99654807,0.00016438,2]
[359017112,1745649040153,-271.72360812,0.00016438,2]
[359017115,1745649040162,-500.0,0.00016438,2]
[359017116,1745649040328,-500.0,0.00016438,2]
[359017117,1745649040339,-500.0,0.00016438,2]
[359017118,1745649040348,-500.0,0.00016438,2]
[359017119,1745649040358,-500.0,0.00016438,2]
[359017120,1745649040369,-500.0,0.00016438,2]
[359017121,1745649040380,-511.05548959,0.00016438,2]
[359017122,1745649040390,-436.33796977,0.00016438,2]
[359017123,1745649040401,-503.64090004,0.00016438,2]
[359017124,1745649040410,-469.37013672,0.00016438,2]
[359017126,1745649040420,-502.55857319,0.00016438,2]
[359017127,1745649040430,-500.0,0.00016438,2]
[359017128,1745649040440,-504.78768748,0.00016438,2]
[359017130,1745649040452,-507.6546171,0.00016438,2]
[359017131,1745649040462,-500.0,0.00016438,2]
[359017132,1745649040472,-502.80911721,0.00016438,2]
[359017133,1745649040481,-500.0,0.00016438,2]
[359017134,1745649040492,-505.16233563,0.00016438,2]
[359017135,1745649040504,-204.2554259,0.00016438,2]
[359017136,1745649040515,-510.66070939,0.00016438,2]
[359017137,1745649040527,-165.40689313,0.00016438,2]
[359017138,1745649040538,-504.36055416,0.00016438,2]
[359017139,1745649040550,-500.0,0.00016438,2]
[359017140,1745649040560,-170.59176496,0.00016438,2]
[359017141,1745649040570,-556.18669752,0.00016438,2]
[359017142,1745649040580,-500.0,0.00016438,2]
[359017143,1745649040590,-500.0,0.00016438,2]
[359017144,1745649040600,-500.0,0.00016438,2]
[359017146,1745649040610,-417.66305127,0.00016438,2]
[359017147,1745649040620,-500.0,0.00016438,2]
[359017148,1745649040629,-500.0,0.00016438,2]
[359017149,1745649040639,-508.66859925,0.00016438,2]
[359017150,1745649040649,-151.0,0.00016438,2]
[359017151,1745649040658,-500.0,0.00016438,2]
[359017152,1745649040669,-151.0,0.00016438,2]
[359017153,1745649040679,-158.195311,0.00016438,2]
[359017154,1745649040688,-500.0,0.00016438,2]
[359017155,1745649040698,-500.0,0.00016438,2]
[359017156,1745649040707,-500.0,0.00016438,2]
[359017157,1745649040717,-500.0,0.00016438,2]
[359017158,1745649040726,-500.0,0.00016438,2]
[359017159,1745649040736,-500.0,0.00016438,2]
[359017160,1745649040745,-500.0,0.00016438,2]
[359017161,1745649040754,-500.0,0.00016438,2]
[359017162,1745649040764,-151.0,0.00016438,2]
[359017163,1745649040774,-500.0,0.00016438,2]
[359017164,1745649040783,-500.0,0.00016438,2]
[359017165,1745649040793,-500.0,0.00016438,2]
[359017166,1745649040803,-500.0,0.00016438,2]
[359017167,1745649040812,-500.0,0.00016438,2]
[359017168,1745649040822,-500.0,0.00016438,2]
[359017170,1745649040832,-151.0,0.00016438,2]
[359017171,1745649040842,-151.0,0.00016438,2]
[359017172,1745649040852,-178.369073,0.00016438,2]
[359017173,1745649040863,-744.18,0.00016438,2]
[359017174,1745649040872,-500.0,0.00016438,2]
[359017175,1745649040882,-370.16598026,0.00016438,2]
[359017176,1745649040892,-500.0,0.00016438,2]
[359017177,1745649040902,-503.90102942,0.00016438,2]
[359017178,1745649040911,-500.0,0.00016438,2]
[359017179,1745649040922,-500.0,0.00016438,2]
[359017180,1745649040931,-521.92230159,0.00016438,2]
[359017181,1745649040941,-500.0,0.00016438,2]
[359017182,1745649040951,-500.0,0.00016438,2]
[359017183,1745649040961,-500.0,0.00016438,2]
[359017184,1745649040971,-500.0,0.00016438,2]
[359017185,1745649040982,-500.0,0.00016438,2]
[359017186,1745649040992,-500.0,0.00016438,2]
[359017187,1745649041002,-500.0,0.00016438,2]
[359017188,1745649041012,-501.92968895,0.00016438,2]
[359017189,1745649041025,-500.0,0.00016438,2]
[359017190,1745649041036,-507.75329958,0.00016438,2]
[359017191,1745649041046,-500.0,0.00016438,2]
[359017192,1745649041057,-500.0,0.00016438,2]
[359017194,1745649041067,-508.5015509,0.00016438,2]
[359017196,1745649041078,-500.0,0.00016438,2]
[359017198,1745649041088,-500.0,0.00016438,2]
[359017200,1745649041099,-151.0,0.00016438,2]
[359017202,1745649041109,-500.0,0.00016438,2]
[359017203,1745649041119,-500.0,0.00016438,2]
[359017204,1745649041130,-500.0,0.00016438,2]
[359017205,1745649041140,-500.0,0.00016438,2]
[359017206,1745649041151,-511.78971458,0.00016438,2]
[359017207,1745649041160,-500.0,0.00016438,2]
[359017208,1745649041171,-500.0,0.00016438,2]
[359017209,1745649041181,-515.31298257,0.00016438,2]
[359017210,1745649041192,-500.0,0.00016438,2]
[359017211,1745649041203,-500.0,0.00016438,2]
[359017212,1745649041213,-500.0,0.00016438,2]
[359017213,1745649041224,-513.3787585,0.00016438,2]
[359017214,1745649041234,-506.44871758,0.00016438,2]
[359017215,1745649041244,-500.0,0.00016438,2]
[359017216,1745649041254,-500.0,0.00016438,2]
[359017217,1745649041264,-504.09695807,0.00016438,2]
[359017218,1745649041274,-500.0,0.00016438,2]
[359017219,1745649041284,-500.0,0.00016438,2]
[359017220,1745649041294,-500.0,0.00016438,2]
[359017221,1745649041305,-500.0,0.00016438,2]
[359017222,1745649041315,-532.50515419,0.00016438,2]
[359017223,1745649041326,-500.0,0.00016438,2]
[359017224,1745649041336,-500.0,0.00016438,2]
[359017225,1745649041347,-500.0,0.00016438,2]
[359017226,1745649041357,-500.0,0.00016438,2]
[359017227,1745649041368,-500.0,0.00016438,2]
[359017228,1745649041378,-500.0,0.00016438,2]
[359017229,1745649041390,-500.0,0.00016438,2]
[359017230,1745649041400,-500.0,0.00016438,2]
[359017231,1745649041410,-500.0,0.00016438,2]
[359017232,1745649041420,-500.0,0.00016438,2]
[359017233,1745649041430,-500.0,0.00016438,2]
[359017234,1745649041440,-500.0,0.00016438,2]
[359017235,1745649041450,-500.0,0.00016438,2]
[359017236,1745649041460,-500.0,0.00016438,2]
[359017237,1745649041478,-500.0,0.00016438,2]